Workbook

Sheet 表格样式3
A1: 2024年贵阳市公安局下属事业单位公开招聘工作人员面试成绩及进入体检环节人员名单
A2: （B类岗位）
A3: 序号 | B3: 姓名 | C3: 准考证号 | D3: 单位 | E3: 报考岗位及代码 | F3: 笔试成绩 | G3: 笔试成绩（百分制） | H3: 笔试成绩30% | I3: 专业测试成绩 | J3: 专业测试成绩40% | K3: 笔试、专业测试成绩 | L3: 面试成绩 | M3: 面试成绩30% | N3: 笔试、专业测试、面试成绩 | O3: 综合排名 | P3: 是否进入体检
A4: 1 | B4: 付仙钰 | C4: 1152011401714 | D4: 贵阳市网络与数据安全监测中心 | E4: 20101001001 | F4: 204.5 | G4: 68.17 | H4: =G4*0.3 -> 20.45 | I4: 75.00 | J4: =I4*0.4 -> 30.00 | K4: =H4+J4 -> 50.45 | L4: 77.80 | M4: =L4*0.3 -> 23.34 | N4: =K4+M4 -> 73.79 | O4: 1 | P4: 是
A5: 2 | B5: 卢泰玮 | C5: 1152011402605 | D5: 贵阳市网络与数据安全监测中心 | E5: 20101001001 | F5: 220.5 | G5: 73.50 | H5: =G5*0.3 -> 22.05 | I5: 67.50 | J5: =I5*0.4 -> 27.00 | K5: =H5+J5 -> 49.05 | L5: 80.80 | M5: =L5*0.3 -> 24.24 | N5: =K5+M5 -> 73.29 | O5: 2
A6: 3 | B6: 陈垣霖 | C6: 1152011400630 | D6: 贵阳市网络与数据安全监测中心 | E6: 20101001001 | F6: 203 | G6: 67.67 | H6: =G6*0.3 -> 20.30 | I6: 69.50 | J6: =I6*0.4 -> 27.80 | K6: =H6+J6 -> 48.10 | L6: 67.00 | M6: =L6*0.3 -> 20.10 | N6: =K6+M6 -> 68.20 | O6: 3
A8: 1 | B8: 詹刚 | C8: 1152010701720 | D8: 贵阳市公安局网络信息中心 | E8: 20101000901 | F8: 206 | G8: 68.67 | H8: =G8*0.3 -> 20.60 | I8: 78.00 | J8: =I8*0.4 -> 31.20 | K8: =H8+J8 -> 51.80 | L8: 81.20 | M8: =L8*0.3 -> 24.36 | N8: =K8+M8 -> 76.16 | O8: 1 | P8: 是
A9: 2 | B9: 石振江 | C9: 1152010701214 | D9: 贵阳市公安局网络信息中心 | E9: 20101000901 | F9: 185.5 | G9: 61.83 | H9: =G9*0.3 -> 18.55 | I9: 74.00 | J9: =I9*0.4 -> 29.60 | K9: =H9+J9 -> 48.15 | L9: 81.60 | M9: =L9*0.3 -> 24.48 | N9: =K9+M9 -> 72.63 | O9: 2
A10: 3 | B10: 段亦 | C10: 1152010702217 | D10: 贵阳市公安局网络信息中心 | E10: 20101000901 | F10: 185.5 | G10: 61.83 | H10: =G10*0.3 -> 18.55 | I10: 76.00 | J10: =I10*0.4 -> 30.40 | K10: =H10+J10 -> 48.95 | L10: 78.20 | M10: =L10*0.3 -> 23.46 | N10: =K10+M10 -> 72.41 | O10: 3
A11: （A类岗位）
A12: 序号 | B12: 姓名 | C12: 准考证号 | D12: 单位 | E12: 报考岗位及代码 | F12: 笔试成绩 | G12: 笔试成绩（百分制） | H12: 笔试成绩60% | I12: 面试成绩 | J12: 面试成绩40% | K12: 笔试、面试成绩 | L12: 综合排名 | M12: 是否进入体检
A13: 1 | B13: 刘颖 | C13: 1152010701124 | D13: 贵阳市公安局监管场所卫生所 | E13: 20101000701 | F13: 200.5 | G13: =F13/3 -> 66.83 | H13: =G13*0.6 -> 40.10 | I13: 73.80 | J13: =I13*0.4 -> 29.52 | K13: =H13+J13 -> 69.62 | L13: 1 | M13: 是
A14: 2 | B14: 李其超 | C14: 1152010701109 | D14: 贵阳市公安局监管场所卫生所 | E14: 20101000701 | F14: 199.5 | G14: =F14/3 -> 66.50 | H14: =G14*0.6 -> 39.90 | I14: 缺考 | K14: =H14 -> 39.90 | L14: 2
A15: 3 | B15: 李祖蓉 | C15: 1152010702521 | D15: 贵阳市公安局监管场所卫生所 | E15: 20101000701 | F15: 190 | G15: =F15/3 -> 63.33 | H15: =G15*0.6 -> 38.00 | I15: 缺考 | K15: =H15 -> 38.00 | L15: 3
A17: 1 | B17: 冯小莉 | C17: 1152010700425 | D17: 贵阳市公安局禁毒宣传教育中心 | E17: 20101000801 | F17: 212.5 | G17: =F17/3 -> 70.83 | H17: =G17*0.6 -> 42.50 | I17: 85.40 | J17: =I17*0.4 -> 34.16 | K17: =H17+J17 -> 76.66 | L17: 1 | M17: 是
A18: 2 | B18: 陆圆圆 | C18: 1152010703025 | D18: 贵阳市公安局禁毒宣传教育中心 | E18: 20101000801 | F18: 215.5 | G18: =F18/3 -> 71.83 | H18: =G18*0.6 -> 43.10 | I18: 缺考 | K18: =H18 -> 43.10 | L18: 2
A19: 3 | B19: 邹男楠 | C19: 1152010701711 | D19: 贵阳市公安局禁毒宣传教育中心 | E19: 20101000801 | F19: 213 | G19: =F19/3 -> 71.00 | H19: =G19*0.6 -> 42.60 | I19: 缺考 | K19: =H19 -> 42.60 | L19: 3
